bitfinex/quotes_SOLUSD_20250721
["timestamp","ask_amount","ask_price","bid_price","bid_amount"]
[1753115148406,0.06,194.31,194.3,1.20466803]
[1753115148596,0.06,194.31,194.3,11.91521166]
[1753115148923,0.1,194.32,194.3,11.91521166]
[1753115148924,0.05565608,194.32,194.31,42.78468397]
[1753115149101,10.0,194.38,194.31,28.1852276]
[1753115149411,0.06,194.39,194.37,10.71054363]
[1753115149599,0.06,194.39,194.38,10.71054363]
[1753115150424,0.06,194.39,194.34,1.2045621]
[1753115150596,0.06,194.39,194.38,10.71054363]
[1753115151020,0.06,194.39,194.38,11.91499984]
[1753115151911,0.06,194.39,194.38,39.41022744]
[1753115152710,0.06,194.39,194.38,37.91499984]
[1753115155543,0.06,194.42,194.38,54.69968381]
[1753115155741,0.06,194.42,194.41,10.71054363]
[1753115156035,0.06,194.42,194.41,11.22492046]
[1753115156207,0.06,194.42,194.41,11.91492046]
[1753115157204,0.06,194.42,194.41,0.51437683]
[1753115157403,0.06,194.42,194.41,11.40054363]
[1753115157646,0.06,194.42,194.41,0.69]
[1753115157854,0.06,194.42,194.41,10.71054363]
[1753115158031,0.06,194.42,194.41,11.40054363]
[1753115158355,0.06,194.42,194.41,11.91492046]
[1753115159037,0.06,194.42,194.41,10.71054363]
[1753115159235,0.06,194.42,194.41,11.22492046]
[1753115159554,0.06,194.42,194.41,1.20437683]
[1753115159852,0.1,194.43,194.41,1.20437683]
[1753115160054,0.1,194.43,194.42,10.71054363]
[1753115160351,0.1,194.43,194.42,11.40054363]
[1753115160556,0.1,194.43,194.42,10.71054363]
[1753115160723,0.1,194.43,194.42,11.224894]
[1753115161132,0.1,194.43,194.42,11.914894]
[1753115161363,0.1,194.43,194.42,10.71054363]
[1753115161541,0.1,194.43,194.39,1.21442975]
[1753115161736,0.1,194.43,194.42,10.71054363]
[1753115162232,0.1,194.43,194.41,0.51437683]
[1753115162440,10.8,194.43,194.41,10.71054363]
[1753115162635,10.8,194.43,194.42,36.71054363]
[1753115162842,0.1,194.43,194.42,36.71054363]
[1753115163038,10.8,194.43,194.42,36.71054363]
[1753115163322,10.0,194.41,194.4,10.71054363]
[1753115163526,0.1,194.43,194.4,11.41054363]
[1753115163760,0.1,194.43,194.42,10.71054363]
[1753115164351,10.8,194.43,194.41,10.71054363]
[1753115164659,10.1,194.43,194.41,10.71054363]
[1753115164844,10.7,194.42,194.41,36.71054363]
[1753115165162,10.0,194.35,194.26,0.7]
[1753115165359,10.0,194.32,194.29,10.71054363]
[1753115165660,0.7,194.32,194.26,0.7]
[1753115165833,0.7,194.32,194.31,10.71054363]
[1753115166333,10.0,194.34,194.31,11.41054363]
[1753115166653,10.0,194.34,194.28,10.71054363]
[1753115166654,10.0,194.35,194.32,10.71054363]
[1753115166834,10.0,194.34,194.32,10.71054363]
[1753115167151,10.0,194.33,194.31,10.71054363]
[1753115167353,10.0,194.32,194.31,10.71054363]
[1753115167538,10.0,194.32,194.3,10.71054363]
[1753115167742,10.0,194.32,194.31,36.71054363]
[1753115167944,10.0,194.33,194.31,36.71054363]
[1753115168135,10.0,194.33,194.32,10.71054363]
[1753115168750,10.0,194.34,194.32,10.71054363]
[1753115169061,10.0,194.38,194.36,26.0]
[1753115169250,10.0,194.37,194.33,1.21458858]
[1753115169449,10.0,194.4,194.34,0.7]
[1753115169655,10.0,194.41,194.39,10.71054363]
[1753115169957,10.0,194.38,194.29,1.21469452]
[1753115170154,10.0,194.37,194.31,26.0]
[1753115170354,10.0,194.36,194.31,26.0]
[1753115170553,10.0,194.37,194.32,1.21461506]
[1753115170758,10.0,194.37,194.36,36.71054363]
[1753115171146,10.0,194.37,194.36,26.0]
[1753115171357,10.7,194.37,194.36,26.0]
[1753115171655,10.0,194.36,194.35,26.0]
[1753115171860,10.7,194.36,194.35,26.0]
[1753115172035,10.0,194.36,194.35,26.0]
[1753115172353,10.0,194.35,194.31,26.0]
[1753115172536,10.0,194.35,194.34,10.71054363]
[1753115172742,0.7,194.39,194.34,10.71054363]
[1753115172743,10.0,194.36,194.34,10.71054363]
[1753115172962,10.0,194.38,194.35,10.71054363]
[1753115173135,10.0,194.42,194.39,26.0]
[1753115173340,10.8,194.43,194.41,10.71054363]
[1753115173566,10.0,194.41,194.4,10.71054363]
[1753115173752,10.0,194.41,194.39,36.71054363]
[1753115173953,10.7,194.4,194.38,10.71054363]
[1753115174157,10.7,194.4,194.33,0.7]
[1753115174158,0.7,194.4,194.39,26.0]
[1753115174340,10.7,194.4,194.38,10.71054363]
[1753115174661,20.71054363,194.42,194.41,26.0]
[1753115174959,20.71054363,194.42,194.33,1.21458858]
[1753115175166,10.0,194.39,194.38,36.71054363]
[1753115176173,10.0,194.39,194.38,26.0]
[1753115176339,10.0,194.39,194.29,0.51469452]
[1753115176340,21.41054363,194.39,194.3,0.7]
[1753115176544,10.7,194.38,194.37,26.0]
[1753115177156,10.0,194.38,194.37,26.0]
[1753115177361,10.0,194.38,194.37,36.71054363]
[1753115177562,10.7,194.38,194.37,26.0]
[1753115177761,10.7,194.38,194.31,26.7]
[1753115177961,10.0,194.37,194.36,36.71054363]
[1753115178969,10.0,194.37,194.36,26.0]
[1753115179180,10.7,194.37,194.36,26.0]
[1753115179388,10.7,194.37,194.29,10.71054363]
[1753115179389,10.0,194.33,194.29,10.71054363]
[1753115179666,10.0,194.31,194.29,10.71054363]
[1753115179882,0.7,194.32,194.3,10.71054363]
[1753115179883,10.0,194.32,194.3,10.71054363]
[1753115180050,10.0,194.32,194.31,10.71054363]
[1753115180251,10.0,194.31,194.28,0.7]
[1753115180457,10.0,194.32,194.3,10.71054363]
[1753115180658,10.0,194.32,194.31,36.71054363]
[1753115181395,10.0,194.32,194.31,26.0]
[1753115181575,10.0,194.31,194.23,3.25448146]
[1753115181876,10.0,194.29,194.25,26.0]
[1753115182071,0.7,194.32,194.27,0.03]
[1753115182072,10.0,194.28,194.27,0.03]
[1753115182296,10.0,194.29,194.27,0.73]
[1753115182575,10.0,194.3,194.27,0.03]
[1753115182954,10.7,194.29,194.27,0.03]
[1753115183158,10.7,194.29,194.28,26.0]
[1753115183484,10.0,194.29,194.28,26.0]
[1753115183684,10.0,194.29,194.27,10.74054363]
[1753115183916,10.0,194.28,194.27,0.03]
[1753115184065,10.0,194.29,194.28,26.0]
[1753115184262,10.0,194.29,194.27,0.03]
[1753115184263,10.0,194.28,194.27,0.03]
[1753115184473,10.0,194.28,194.27,10.74054363]
[1753115184986,10.0,194.3,194.29,26.0]
[1753115185158,10.0,194.3,194.29,31.14694528]
[1753115185481,0.7,194.33,194.28,31.14717088]
[1753115185482,10.0,194.29,194.28,31.14717088]
[1753115185781,10.0,194.29,194.28,26.0]
[1753115186161,10.0,194.28,194.27,15.88799671]
[1753115186570,10.0,194.29,194.27,16.58799671]
[1753115186875,10.0,194.28,194.27,5.17745308]
[1753115187380,10.0,194.28,194.27,0.03]
[1753115187683,10.0,194.29,194.27,0.03]
[1753115187890,10.0,194.28,194.27,10.74054363]
[1753115188066,10.7,194.31,194.28,26.0]
[1753115188265,10.0,194.29,194.28,36.71054363]
[1753115189285,10.0,194.29,194.28,31.14721021]
[1753115189477,10.0,194.29,194.28,41.85775384]
[1753115190086,10.0,194.31,194.28,41.85775384]
[1753115190268,10.0,194.31,194.3,10.71054363]
[1753115190469,10.0,194.34,194.3,10.71054363]
[1753115190673,0.61488003,194.43,194.33,10.71054363]
[1753115190674,10.0,194.35,194.33,10.71054363]
[1753115190862,10.0,194.39,194.34,11.41054363]
[1753115191065,10.0,194.38,194.37,26.0]
[1753115191264,10.0,194.36,194.35,26.0]
[1753115191501,10.0,194.36,194.35,36.71054363]
[1753115191672,10.72,194.38,194.35,36.71054363]
[1753115192213,10.0,194.38,194.36,10.71054363]
[1753115192374,10.0,194.37,194.35,36.71054363]
[1753115192978,10.0,194.37,194.35,26.0]
[1753115193290,10.0,194.37,194.36,10.71054363]
[1753115193695,10.0,194.41,194.36,15.85563521]
[1753115194013,10.0,194.4,194.38,10.71054363]
[1753115194292,10.0,194.41,194.39,10.71054363]
[1753115194487,10.0,194.41,194.4,10.71054363]
[1753115194696,10.0,194.39,194.37,10.71054363]
[1753115194881,10.0,194.39,194.38,36.71054363]
[1753115195066,10.72,194.41,194.38,36.71054363]
[1753115195277,10.81054363,194.43,194.38,36.71054363]
[1753115195278,10.0,194.42,194.41,5.14376832]
[1753115195477,10.0,194.41,194.4,5.14397781]
[1753115195702,10.0,194.41,194.39,26.0]
[1753115195703,10.0,194.4,194.39,26.0]
[1753115195892,10.0,194.4,194.3,0.51466803]
[1753115195893,10.0,194.38,194.3,0.51466803]
[1753115196100,10.0,194.37,194.3,19.19797388]
[1753115196423,10.0,194.37,194.36,26.0]
[1753115196914,10.71054363,194.41,194.36,11.38054363]
[1753115196915,10.0,194.41,194.36,11.38054363]
[1753115197114,0.1,194.43,194.42,26.0]
[1753115197281,10.1,194.43,194.42,41.85404738]
[1753115197808,10.1,194.43,194.38,0.51445621]
[1753115197809,0.1,194.43,194.41,10.71054363]
[1753115198187,0.1,194.43,194.41,26.0]
[1753115198188,10.0,194.42,194.41,26.0]
[1753115198394,10.72,194.42,194.41,26.0]
[1753115198582,10.0,194.42,194.41,10.71054363]
[1753115198784,10.0,194.42,194.41,36.71054363]
[1753115199418,10.0,194.42,194.41,41.85431195]
[1753115199785,10.06,194.42,194.41,41.85431195]
[1753115200297,0.06,194.42,194.41,31.14376832]
[1753115200499,10.06,194.42,194.41,31.14376832]
[1753115200698,10.06,194.42,194.41,41.85431195]
[1753115200905,10.06,194.42,194.41,31.14376832]
[1753115201213,0.06,194.42,194.41,36.71054363]
[1753115201407,10.06,194.42,194.41,36.71054363]
[1753115202113,10.06,194.42,194.41,31.14376832]
[1753115202285,10.06,194.42,194.41,41.85431195]
[1753115204233,0.06,194.42,194.41,41.85431195]
[1753115204515,10.06,194.42,194.41,41.85431195]
[1753115204720,10.06,194.42,194.41,31.14376832]
[1753115204909,10.06,194.42,194.41,41.85431195]
[1753115205289,0.06,194.42,194.41,42.52431195]
[1753115205707,0.06,194.42,194.41,43.03868878]
[1753115205900,0.06,194.42,194.41,32.32814515]
[1753115206303,0.06,194.42,194.41,31.65814515]
[1753115206519,0.06,194.42,194.41,41.85431195]
[1753115206706,0.06,194.42,194.41,43.03868878]
[1753115207098,0.1,194.43,194.41,43.03868878]
[1753115207300,0.2,194.45,194.44,10.71054363]
[1753115207491,0.06,194.5,194.48,26.0]
[1753115207692,0.06,194.5,194.49,11.22470888]
[1753115207911,0.06,194.5,194.49,16.3663614]
[1753115208114,0.06,194.5,194.49,6.32581777]
[1753115208313,40.56,194.59,194.49,6.32581777]
[1753115208314,10.72,194.7,194.54,25.42178222]
[1753115208614,10.0,194.66,194.64,10.71054363]
[1753115208799,10.0,194.67,194.65,10.71054363]
[1753115209002,10.72,194.69,194.66,10.71054363]
[1753115209325,10.72,194.68,194.66,26.0]
[1753115209533,10.0,194.65,194.56,2.51261726]
[1753115209691,1.9759,194.69,194.52,0.51408595]
[1753115209692,10.0,194.6,194.52,0.51408595]
[1753115210024,10.0,194.6,194.5,0.53]
[1753115210025,10.0,194.57,194.56,10.71054363]
[1753115210317,7.43210738,194.53,194.51,5.14112384]
[1753115210513,7.43210738,194.53,194.52,10.71054363]
[1753115210894,7.43210738,194.59,194.55,26.0]
[1753115211090,7.43210738,194.59,194.58,36.71054363]
[1753115211904,7.43210738,194.59,194.58,41.84981796]
[1753115212403,7.43210738,194.6,194.58,15.84981796]
[1753115212607,7.43210738,194.6,194.59,10.71054363]
[1753115212904,7.43210738,194.61,194.58,5.13927433]
[1753115213104,7.43210738,194.61,194.6,26.0]
[1753115213295,7.43210738,194.61,194.6,36.71054363]
[1753115213703,7.43210738,194.66,194.61,26.0]
[1753115213946,7.43210738,194.68,194.65,10.71054363]
[1753115214095,7.43210738,194.7,194.67,36.71054363]
[1753115214425,7.43210738,194.7,194.69,10.71054363]
[1753115214721,7.43210738,194.7,194.67,26.0]
[1753115214921,7.43210738,194.68,194.67,26.0]
[1753115215131,7.43210738,194.68,194.67,36.71054363]
[1753115215922,7.43210738,194.7,194.68,5.13649175]
[1753115216121,7.43210738,194.69,194.68,5.13649175]
[1753115216306,7.43210738,194.69,194.68,10.71054363]
[1753115216703,7.43210738,194.69,194.68,15.84716398]
[1753115218433,7.43210738,194.67,194.65,5.13721673]
[1753115218722,7.43210738,194.66,194.65,5.13721673]
[1753115218895,7.43210738,194.66,194.65,15.84776036]
[1753115219314,7.43210738,194.66,194.65,5.13721673]
[1753115219720,7.43210738,194.68,194.65,5.13721673]
[1753115219927,7.43210738,194.68,194.67,10.71054363]
[1753115220312,7.43210738,194.66,194.64,26.0]
[1753115220512,8.15210738,194.65,194.64,26.0]
[1753115220826,7.43210738,194.61,194.55,0.53]
[1753115221033,7.43210738,194.57,194.55,10.71054363]
[1753115221323,7.43210738,194.56,194.51,5.14112384]
[1753115221531,7.43210738,194.54,194.51,5.14112384]
[1753115221729,7.43210738,194.54,194.53,10.71054363]
[1753115221910,0.39488003,194.64,194.54,5.14033103]
[1753115221911,7.43210738,194.57,194.54,5.14033103]
[1753115222107,7.43210738,194.59,194.56,36.71054363]
[1753115222309,7.43210738,194.6,194.58,10.71054363]
[1753115222541,7.43210738,194.6,194.54,18.50519172]
[1753115222727,7.43210738,194.6,194.59,36.71054363]
[1753115223805,8.08210738,194.6,194.59,26.0]
[1753115224036,8.08210738,194.6,194.5,2.57190979]
[1753115224037,7.43210738,194.52,194.5,5.14138817]
[1753115224225,7.43210738,194.53,194.47,5.14218131]
[1753115224429,7.43210738,194.5,194.49,10.71054363]
[1753115224813,7.43210738,194.49,194.48,10.71054363]
[1753115225335,0.65,194.5,194.48,10.71054363]
[1753115225336,7.43210738,194.5,194.48,15.85246053]
[1753115225541,7.43210738,194.52,194.51,26.0]
[1753115225744,7.43210738,194.54,194.51,36.71054363]
[1753115225913,7.43210738,194.54,194.53,10.71054363]
[1753115226727,7.43210738,194.55,194.54,26.0]
[1753115226917,7.43210738,194.55,194.54,36.71054363]
[1753115227318,7.43210738,194.58,194.57,26.0]
[1753115227531,7.43210738,194.59,194.58,26.0]
[1753115227834,8.08210738,194.59,194.58,26.0]
[1753115228211,7.43210738,194.59,194.58,36.71054363]
[1753115228411,7.43210738,194.6,194.58,36.71054363]
[1753115228627,7.43210738,194.6,194.59,10.71054363]
[1753115229035,7.43210738,194.59,194.58,26.0]
[1753115229226,8.08210738,194.59,194.58,36.71054363]
[1753115229533,8.08210738,194.59,194.57,10.71054363]
[1753115229534,7.43210738,194.58,194.57,10.71054363]
[1753115229830,7.43210738,194.57,194.56,5.13980263]
[1753115230133,7.43210738,194.57,194.56,15.85034626]
[1753115230513,7.43210738,194.57,194.56,10.71054363]
[1753115230720,7.43210738,194.57,194.56,36.71054363]
[1753115230929,7.43210738,194.57,194.56,26.0]
[1753115231236,8.08210738,194.57,194.56,36.71054363]
[1753115231408,7.43210738,194.57,194.56,41.85034626]
[1753115232433,7.43210738,194.57,194.56,31.13980263]
[1753115232738,7.43210738,194.57,194.56,15.85034626]
[1753115233722,1.04488003,194.62,194.56,15.85034626]
[1753115233723,7.43210738,194.58,194.56,15.85034626]
[1753115233936,7.43210738,194.58,194.57,36.71054363]
[1753115235038,7.43210738,194.58,194.57,26.0]
[1753115235039,8.08210738,194.58,194.57,26.0]
[1753115236242,8.08210738,194.58,194.54,5.14010126]
[1753115236544,7.43210738,194.56,194.55,26.0]
[1753115237029,7.43210738,194.58,194.57,26.0]
[1753115237633,7.43210738,194.58,194.57,41.85008209]
[1753115238327,8.08210738,194.58,194.57,36.71054363]
[1753115238922,8.08210738,194.58,194.57,41.85008209]
[1753115239128,8.08210738,194.58,194.57,36.71054363]
[1753115239557,7.43210738,194.57,194.52,5.14085955]
[1753115239735,7.43210738,194.56,194.55,26.0]
[1753115240447,7.43210738,194.57,194.55,26.0]
[1753115240835,7.43210738,194.58,194.56,10.71054363]
[1753115241152,7.43210738,194.58,194.57,11.22449747]
[1753115241845,7.43210738,194.58,194.57,15.85008209]
[1753115242168,8.08210738,194.58,194.57,36.71054363]
[1753115242460,7.43210738,194.58,194.57,36.71054363]
[1753115243031,7.49210738,194.58,194.57,36.71054363]
[1753115243265,8.14210738,194.58,194.57,36.71054363]
[1753115244050,8.14210738,194.58,194.57,26.0]
[1753115244248,7.43210738,194.55,194.54,5.17007755]
[1753115244464,7.43210738,194.55,194.54,15.88087466]
[1753115244639,7.43210738,194.55,194.54,41.88087466]
[1753115246047,8.08210738,194.55,194.54,0.03]
[1753115247459,8.08210738,194.55,194.54,15.88087466]
[1753115247660,8.08210738,194.55,194.54,10.74054363]
[1753115247848,8.08210738,194.55,194.54,0.03]
[1753115248758,7.43210738,194.55,194.54,10.74054363]
[1753115248955,7.43210738,194.55,194.54,36.74054363]
[1753115249552,7.43210738,194.55,194.54,26.03]
[1753115249934,7.43210738,194.55,194.54,41.88087466]
[1753115251356,7.43210738,194.55,194.54,31.17033103]
[1753115251549,7.43210738,194.55,194.54,26.03]
[1753115251550,8.13210738,194.55,194.54,26.03]
[1753115252260,23.98271783,194.55,194.54,0.03]
[1753115253243,8.13210738,194.55,194.54,0.03]
[1753115253571,24.37759786,194.55,194.54,0.03]
[1753115253742,13.66705423,194.55,194.54,0.03]
[1753115253942,24.37759786,194.55,194.54,0.03]
[1753115254464,70.97039786,194.55,194.54,0.03]
[1753115255162,65.83033104,194.55,194.54,0.03]
[1753115255463,8.13210738,194.55,194.54,0.03]
[1753115256665,19.23753104,194.55,194.54,0.03]
[1753115258647,59.51753104,194.55,194.54,0.03]
[1753115260168,8.13210738,194.55,194.54,0.03]
[1753115260467,48.39210738,194.55,194.54,0.03]
[1753115262047,7.43210738,194.56,194.54,10.74054363]
[1753115262248,0.06,194.58,194.57,26.0]
[1753115262443,7.49210738,194.58,194.57,10.71054363]
[1753115263056,7.49210738,194.58,194.55,27.04400668]
[1753115263252,18.14265101,194.56,194.54,0.03]
[1753115263555,47.69210738,194.55,194.54,0.03]
[1753115263864,48.39210738,194.55,194.54,0.03]
[1753115264064,59.10265101,194.55,194.54,0.03]
[1753115264255,48.39210738,194.55,194.54,0.03]
[1753115264461,59.10265101,194.55,194.54,0.03]
[1753115264665,7.43210738,194.51,194.46,0.03]
[1753115264975,58.40265101,194.51,194.46,0.03]
[1753115265151,8.13210738,194.51,194.49,26.0]
[1753115265357,59.08265101,194.51,194.46,0.03]
[1753115265980,8.13210738,194.51,194.46,0.03]
[1753115266165,59.08265101,194.51,194.46,0.03]
[1753115266777,18.84265101,194.51,194.46,0.03]
[1753115267089,48.37210738,194.51,194.46,0.03]
[1753115267256,59.08265101,194.51,194.46,0.03]
[1753115268878,59.47753104,194.51,194.46,0.03]
[1753115271461,19.23753104,194.51,194.46,0.03]
[1753115271682,59.45753104,194.51,194.46,0.03]
[1753115272583,19.23753104,194.51,194.46,0.03]
[1753115273067,59.45753104,194.51,194.46,0.03]
[1753115273264,8.52698741,194.51,194.46,0.03]
[1753115273489,18.84265101,194.51,194.46,0.03]
[1753115273662,59.06265101,194.51,194.46,0.03]
[1753115274065,18.84265101,194.51,194.46,0.03]
[1753115274266,59.06265101,194.51,194.46,0.03]
[1753115275085,47.65210738,194.51,194.47,10.71054363]
[1753115275883,58.36265101,194.51,194.46,10.74054363]
[1753115276074,48.35210738,194.51,194.46,10.74054363]
[1753115276590,48.35210738,194.51,194.47,10.71054363]
[1753115276766,47.65210738,194.51,194.47,10.71054363]
[1753115276965,47.65210738,194.51,194.46,26.03]
[1753115276966,47.65210738,194.51,194.48,10.71054363]
[1753115277168,7.43210738,194.51,194.49,10.71054363]
[1753115277371,7.43210738,194.51,194.5,11.30054363]
[1753115277675,7.43210738,194.53,194.5,11.30054363]
[1753115277881,0.45488003,194.58,194.5,11.30054363]
[1753115277882,7.43210738,194.54,194.52,10.71054363]
[1753115278066,7.43210738,194.53,194.5,26.03]
[1753115278267,7.43210738,194.56,194.52,0.51408595]
[1753115278474,7.49210738,194.58,194.52,0.51408595]
[1753115278784,7.43210738,194.57,194.53,0.56]
[1753115278968,0.06,194.58,194.54,0.5140331]
[1753115279284,0.06,194.61,194.6,26.0]
[1753115279491,0.06,194.61,194.6,37.78441824]
[1753115281464,7.49210738,194.65,194.6,37.78441824]
[1753115281465,0.06,194.65,194.64,26.0]
[1753115281769,0.06,194.65,194.64,48.49485626]
[1753115281967,0.06,194.65,194.64,52.26820888]
[1753115282389,7.43210738,194.72,194.67,26.0]
[1753115282695,7.43210738,194.75,194.67,37.22423346]
[1753115282864,7.43210738,194.71,194.68,26.5]
[1753115283058,7.43210738,194.71,194.7,10.71054363]
[1753115283290,7.43210738,194.71,194.69,1.01363706]
[1753115283462,7.49210738,194.76,194.74,26.0]
[1753115283666,7.49210738,194.76,194.72,26.0]
[1753115283667,0.06,194.76,194.75,10.71054363]
[1753115283871,0.06,194.76,194.75,11.21054363]
[1753115284289,7.49210738,194.76,194.75,11.21054363]
[1753115284586,0.06,194.76,194.75,11.21054363]
[1753115284889,7.49210738,194.76,194.75,11.21054363]
[1753115285185,0.06,194.76,194.75,11.21054363]
[1753115285593,7.49210738,194.76,194.75,11.21054363]
[1753115285797,6.99210738,194.76,194.75,11.21054363]
[1753115285977,6.99210738,194.77,194.75,11.21054363]
[1753115286291,6.99210738,194.81,194.76,11.72399608]
[1753115286499,6.99210738,194.8,194.76,11.72399608]
[1753115286798,6.99210738,194.81,194.77,11.21054363]
[1753115287086,1.9376,194.89,194.77,26.5]
[1753115287087,6.99210738,194.82,194.77,26.5]
[1753115287399,6.99210738,194.82,194.77,11.72396972]
[1753115287880,6.99210738,194.81,194.77,11.72396972]
[1753115288078,6.99210738,194.82,194.77,51.84396972]
[1753115288280,6.99210738,194.81,194.77,51.84396972]
[1753115289084,6.99210738,194.82,194.77,51.84396972]
[1753115289274,6.99210738,194.81,194.77,51.84396972]
[1753115289475,6.99210738,194.82,194.77,51.84396972]
[1753115289687,6.99210738,194.81,194.77,68.62865369]
[1753115289874,6.99210738,194.82,194.77,51.84396972]
[1753115290470,6.99210738,194.82,194.77,41.13342609]
[1753115290673,6.99210738,194.82,194.77,51.84396972]
[1753115291889,6.99210738,194.82,194.77,11.72396972]
[1753115292063,6.99210738,194.83,194.77,51.82396972]
[1753115292266,6.99210738,194.82,194.77,51.82396972]
[1753115292879,6.99210738,194.84,194.77,1.01342609]
[1753115293188,7.09210738,194.78,194.73,0.5]
[1753115293388,7.09210738,194.78,194.71,7.0376843]
[1753115293389,6.99210738,194.77,194.76,10.71054363]
[1753115294493,6.99210738,194.75,194.73,0.51353155]
[1753115294692,6.99210738,194.75,194.73,1.01353155]
[1753115294891,6.99210738,194.76,194.75,26.0]
[1753115295078,0.1,194.78,194.75,26.5]
[1753115295079,6.99210738,194.77,194.75,26.5]
[1753115295393,6.99210738,194.76,194.75,31.13478818]
[1753115295691,6.99210738,194.76,194.75,41.84533181]
[1753115295989,6.99210738,194.77,194.75,41.84533181]
[1753115296169,6.99210738,194.76,194.75,31.13478818]
[1753115297572,6.99210738,194.76,194.73,0.51353155]
[1753115297795,7.71210738,194.76,194.74,10.71054363]
[1753115297979,7.71210738,194.76,194.72,40.08]
[1753115297980,6.99210738,194.75,194.73,10.71054363]
[1753115298183,6.99210738,194.74,194.72,15.84609358]
[1753115298397,6.99210738,194.73,194.72,15.84609358]
[1753115298604,6.99210738,194.73,194.72,31.13554995]
[1753115298905,6.99210738,194.73,194.72,10.71054363]
[1753115299076,6.99210738,194.7,194.69,5.13637064]
[1753115299281,6.99210738,194.75,194.72,26.0]
[1753115299606,0.1,194.78,194.77,26.0]
[1753115299787,0.1,194.78,194.77,77.26396972]
[1753115299987,0.1,194.78,194.77,77.76396972]
[1753115300183,0.06,194.82,194.77,77.76396972]
[1753115300390,10.0,195.01,194.77,77.76396972]
[1753115300391,6.99210738,194.9,194.81,36.71054363]
[1753115300583,6.99210738,194.9,194.89,36.71054363]
[1753115300778,7.71210738,194.9,194.89,26.0]
[1753115301007,7.71210738,194.9,194.8,5.13347022]
[1753115301008,6.99210738,194.84,194.8,5.13347022]
[1753115301304,6.99210738,194.82,194.81,10.71054363]
[1753115301544,6.99210738,194.81,194.76,5.13452454]
[1753115301680,6.99210738,194.79,194.78,10.71054363]
[1753115301880,6.99210738,194.79,194.75,10.71054363]
[1753115301881,6.99210738,194.76,194.75,10.71054363]
[1753115302584,6.99210738,194.74,194.73,31.13531556]
[1753115302786,6.99210738,194.74,194.73,41.84585919]
[1753115303107,6.99210738,194.74,194.73,5.13531556]
[1753115303281,6.99210738,194.74,194.73,15.84585919]
[1753115303602,7.71210738,194.74,194.73,10.71054363]
[1753115303808,6.99210738,194.73,194.72,10.71054363]
[1753115304483,6.99210738,194.72,194.71,5.13562942]
[1753115304686,6.99210738,194.72,194.71,15.84617305]
[1753115305187,6.99210738,194.72,194.71,10.71054363]
[1753115305583,5.13384462,194.79,194.71,10.71054363]
[1753115305584,6.99210738,194.79,194.74,26.0]
[1753115305805,0.72,194.89,194.81,26.0]
[1753115306010,6.99210738,194.85,194.84,10.71054363]
[1753115306215,6.99210738,194.86,194.84,36.71054363]
[1753115306417,6.99210738,194.86,194.85,10.71054363]
[1753115306886,6.99210738,194.9,194.88,26.0]
[1753115307088,6.99210738,194.9,194.89,15.84164322]
[1753115307286,6.99210738,194.9,194.89,26.0]
[1753115307485,6.99210738,194.88,194.86,47.13438131]
[1753115307933,6.99210738,194.87,194.86,47.13438131]
[1753115308133,6.99210738,194.86,194.77,6.3565]
[1753115308440,6.99210738,194.84,194.82,16.00273406]
[1753115308639,6.99210738,194.83,194.82,16.00273406]
[1753115309014,6.99210738,194.94,194.88,17.9597701]
[1753115309220,6.99210738,194.94,194.93,16.00273406]
[1753115310108,6.99210738,194.94,194.93,16.51573872]
[1753115310310,6.99210738,194.94,194.93,16.85573872]
[1753115310522,0.1,194.98,194.93,16.85573872]
[1753115310523,0.1,194.98,194.96,26.0]
[1753115310716,0.1,194.98,194.97,16.51563348]
[1753115310917,7.09210738,194.98,194.97,16.51563348]
[1753115311132,7.09210738,194.98,194.97,21.64462768]
[1753115311327,0.1,194.98,194.97,21.64462768]
[1753115311557,7.09210738,194.98,194.97,21.64462768]
[1753115312036,0.1,194.98,194.97,5.64189362]